bitfinex/quotes_SOLUSD_20260223
["timestamp","ask_amount","ask_price","bid_price","bid_amount"]
[1771880631260,9.73924751,78.515,78.453,3.35775919]
[1771880631464,3.07846872,78.509,78.48,15.62979068]
[1771880631664,3.07846872,78.514,78.49,12.27203149]
[1771880632278,3.07846872,78.514,78.491,3.35775919]
[1771880632478,3.07846872,78.528,78.491,3.35775919]
[1771880632687,3.07846872,78.549,78.501,3.35775919]
[1771880632879,6.65651369,78.546,78.52,12.27203149]
[1771880633183,0.1,78.55,78.523,3.35775919]
[1771880633787,0.1,78.55,78.53,12.27203149]
[1771880633987,0.1,78.55,78.531,3.35775919]
[1771880634567,0.1,78.55,78.524,3.35775919]
[1771880635169,0.1,78.56,78.541,3.35775919]
[1771880635503,0.1,78.57,78.551,3.35775919]
[1771880635794,3.07846872,78.569,78.543,3.35775919]
[1771880636172,3.07846872,78.568,78.543,3.35775919]
[1771880637590,3.07846872,78.559,78.534,12.73333842]
[1771880637785,12.27203149,78.55,78.534,12.73333842]
[1771880638382,3.07846872,78.552,78.534,12.73333842]
[1771880638688,12.27203149,78.56,78.535,3.35775919]
[1771880638873,3.07846872,78.559,78.534,12.73333842]
[1771880639274,3.07846872,78.539,78.481,50.96742198]
[1771880639575,3.07846872,78.539,78.5,12.27203149]
[1771880639790,3.07846872,78.548,78.501,12.73869122]
[1771880639982,3.07846872,78.548,78.51,12.27203149]
[1771880640182,3.07846872,78.556,78.52,12.27203149]
[1771880640389,3.07846872,78.549,78.51,12.27203149]
[1771880640894,12.27203149,78.54,78.51,12.27203149]
[1771880641191,15.35050021,78.54,78.51,12.27203149]
[1771880641493,3.07846872,78.539,78.504,3.35775919]
[1771880641789,12.27203149,78.54,78.511,3.35775919]
[1771880641992,12.73134746,78.547,78.511,3.35775919]
[1771880642168,12.27203149,78.54,78.511,3.35775919]
[1771880642372,3.07846872,78.539,78.505,44.58314756]
[1771880642589,3.07846872,78.539,78.506,3.35775919]
[1771880642785,3.07846872,78.539,78.51,15.62979068]
[1771880642996,3.07846872,78.539,78.51,3.35775919]
[1771880643373,3.07846872,78.539,78.51,15.62979068]
[1771880643575,3.07846872,78.539,78.51,3.35775919]
[1771880644486,3.07846872,78.539,78.511,12.73706869]
[1771880644681,3.07846872,78.539,78.51,3.35775919]
[1771880644922,3.07846872,78.529,78.506,12.73779403]
[1771880646598,12.27203149,78.53,78.506,3.35775919]
[1771880646779,12.73165657,78.545,78.511,3.35775919]
[1771880647598,12.27203149,78.54,78.511,3.35775919]
[1771880647806,3.07846872,78.539,78.504,12.73806409]
[1771880648100,3.07846872,78.529,78.504,12.73806409]
[1771880648394,12.27203149,78.53,78.505,3.35775919]
[1771880649575,12.27203149,78.53,78.506,16.09563909]
[1771880650201,15.35050021,78.53,78.506,16.09563909]
[1771880650583,15.35050021,78.53,78.507,3.35775919]
[1771880651192,15.35050021,78.53,78.508,12.7375554]
[1771880651599,3.07846872,78.56,78.521,3.35775919]
[1771880651787,3.07846872,78.549,78.522,3.35775919]
[1771880652100,31.82004512,78.567,78.522,3.35775919]
[1771880652101,3.07846872,78.558,78.522,3.35775919]
[1771880652689,3.07846872,78.558,78.53,15.62979068]
[1771880653407,12.72961034,78.557,78.531,16.09158404]
[1771880653587,12.72961034,78.557,78.532,3.35775919]
[1771880653992,3.07846872,78.556,78.532,3.35775919]
[1771880654895,3.07846872,78.556,78.531,12.73382485]
[1771880655903,12.72956098,78.558,78.531,3.35775919]
[1771880656106,12.72956098,78.558,78.526,12.73463566]
[1771880656107,12.72645067,78.577,78.541,3.35775919]
[1771880657315,0.1,78.58,78.55,12.27203149]
[1771880657810,0.1,78.58,78.571,12.72734214]
[1771880657990,3.08495147,78.608,78.571,12.72734214]
[1771880658314,50.85127691,78.661,78.571,12.72734214]
[1771880658315,3.08495147,78.623,78.6,12.27203149]
[1771880658606,3.08495147,78.609,78.571,44.54569751]
[1771880658805,12.27203149,78.6,78.571,44.54569751]
[1771880659008,12.27203149,78.6,78.57,12.27203149]
[1771880659009,12.27203149,78.59,78.561,12.7289622]
[1771880659199,3.08495147,78.599,78.561,44.35136771]
[1771880659516,12.27203149,78.6,78.57,12.27203149]
[1771880659811,12.27203149,78.6,78.561,44.35136771]
[1771880660206,3.34040316,78.599,78.561,44.35136771]
[1771880660415,12.27203149,78.59,78.561,44.35136771]
[1771880660709,3.69383402,78.621,78.57,12.27203149]
[1771880660909,3.34040316,78.609,78.57,12.27203149]
[1771880661086,12.27203149,78.6,78.57,12.27203149]
[1771880661288,12.27203149,78.6,78.561,44.35136771]
[1771880661507,12.27203149,78.6,78.562,3.33663128]
[1771880662011,24.99478305,78.6,78.563,12.72863816]
[1771880662218,12.27203149,78.59,78.564,3.33663128]
[1771880662585,12.27203149,78.58,78.556,12.72962819]
[1771880663109,12.27203149,78.58,78.556,16.06625947]
[1771880663893,12.27203149,78.58,78.557,3.33663128]
[1771880664807,15.61243465,78.59,78.559,3.33663128]
[1771880665013,3.34040316,78.589,78.559,3.33663128]
[1771880666119,3.34040316,78.631,78.581,3.33663128]
[1771880666293,3.34040316,78.609,78.581,3.33663128]
[1771880667019,12.27203149,78.62,78.591,3.37520616]
[1771880667198,12.27203149,78.63,78.601,3.37520616]
[1771880667524,12.27203149,78.64,78.611,3.37520616]
[1771880668207,12.27203149,78.64,78.56,260.94704682]
[1771880668208,12.27203149,78.62,78.579,3.37520616]
[1771880668401,12.27203149,78.6,78.581,3.37520616]
[1771880669299,12.27203149,78.6,78.572,3.37520616]
[1771880669936,12.27203149,78.59,78.562,3.37520616]
[1771880670102,0.06238662,78.59,78.553,3.37520616]
[1771880670307,12.27203149,78.58,78.554,12.73009649]
[1771880670904,12.27203149,78.58,78.554,3.37520616]
[1771880671098,44.52982861,78.599,78.544,3.37520616]
[1771880671099,12.27203149,78.57,78.544,3.37520616]
[1771880671316,12.27203149,78.56,78.536,3.37520616]
[1771880673708,12.27203149,78.56,78.535,12.7330476]
[1771880673709,12.27203149,78.55,78.528,3.37520616]
[1771880674821,12.27203149,78.56,78.528,3.37520616]
[1771880678538,12.27203149,78.55,78.529,12.73414916]
[1771880678943,0.05899364,78.539,78.481,3.39714491]
[1771880679237,12.27203149,78.52,78.491,3.39714491]
[1771880680638,12.27203149,78.52,78.493,3.39714491]
[1771880681426,12.73245884,78.54,78.501,3.39714491]
[1771880681725,56.83540451,78.54,78.501,3.39714491]
[1771880681921,12.27203149,78.52,78.501,3.39714491]
[1771880683027,12.73577095,78.519,78.501,3.39714491]
[1771880683542,12.25744099,78.52,78.501,3.39714491]
[1771880684128,12.73577095,78.519,78.501,3.39714491]
[1771880684942,12.25744099,78.53,78.503,3.39714491]
[1771880685128,12.73285203,78.537,78.503,3.39714491]
[1771880685330,12.25744099,78.53,78.503,3.39714491]
[1771880686143,0.05730916,78.538,78.511,3.39714491]
[1771880686628,0.05730916,78.538,78.521,3.39714491]
[1771880686951,12.73044081,78.552,78.52,12.25744099]
[1771880686952,24.98668402,78.56,78.522,44.57349531]
[1771880687246,24.98668402,78.56,78.531,3.39714491]
[1771880687445,12.25744099,78.56,78.531,3.39714491]
[1771880688034,12.25744099,78.55,78.522,12.73528437]
[1771880688230,12.25744099,78.55,78.523,3.37520616]
[1771880689246,12.73090682,78.549,78.523,3.37520616]
[1771880689432,12.73090682,78.549,78.455,50.98459707]
[1771880689433,12.25744099,78.53,78.507,3.37520616]
[1771880690043,12.25744099,78.53,78.473,5.36086188]
[1771880690044,12.25744099,78.52,78.497,3.37520616]
[1771880690428,12.25744099,78.51,78.485,3.37520616]
[1771880690635,12.25744099,78.5,78.485,16.1164943]
[1771880691354,12.25744099,78.5,78.485,3.37520616]
[1771880692650,12.25744099,78.5,78.486,12.7411258]
[1771880696363,12.25744099,78.51,78.487,3.37520616]
[1771880696866,12.25744099,78.5,78.487,3.37520616]
[1771880697558,12.25744099,78.5,78.48,0.2]
[1771880697740,12.25744099,78.5,78.481,16.11714369]
[1771880698138,12.25744099,78.5,78.483,16.11681899]
[1771880698339,12.25744099,78.5,78.484,3.37520616]
[1771880699055,12.25744099,78.51,78.484,3.37520616]
[1771880700256,12.73739316,78.509,78.486,3.37520616]
[1771880701042,12.73739316,78.509,78.48,12.45744099]
[1771880701043,12.25744099,78.5,78.48,12.9420873]
[1771880701244,12.25744099,78.5,78.48,0.2]
[1771880701651,12.25744099,78.5,78.482,3.37520616]
[1771880702343,12.45744099,78.5,78.482,3.37520616]
[1771880703144,12.45744099,78.5,78.483,3.27520616]
[1771880703955,12.25744099,78.52,78.491,3.17520616]
[1771880704153,12.73382485,78.531,78.483,12.7414689]
[1771880704154,12.25744099,78.51,78.483,12.7414689]
[1771880704361,12.25744099,78.5,78.483,12.7414689]
[1771880706062,12.73901578,78.499,78.48,0.2]
[1771880706670,12.25744099,78.49,78.48,0.2]
[1771880708954,25.65069697,78.5,78.48,0.2]
[1771880709153,12.25744099,78.49,78.48,0.2]
[1771880709781,0.65393847,78.489,78.458,3.1610342]
[1771880710085,0.65393847,78.489,78.401,51.01912487]
[1771880710086,12.25744099,78.47,78.451,3.1610342]
[1771880710382,12.25744099,78.48,78.451,3.1610342]
[1771880710572,12.25744099,78.48,78.453,3.1610342]
[1771880710758,12.25744099,78.47,78.453,3.1610342]
[1771880710964,12.7411258,78.486,78.453,3.1610342]
[1771880710965,12.25744099,78.48,78.453,3.1610342]
[1771880711181,0.65311399,78.484,78.453,3.1610342]
[1771880711392,12.45744099,78.48,78.453,3.1610342]
[1771880711572,12.25744099,78.47,78.453,3.1610342]
[1771880712069,1e-08,78.48,78.461,3.1610342]
[1771880712481,1e-08,78.48,78.463,3.1610342]
[1771880713965,12.45744099,78.5,78.472,3.1610342]
[1771880713966,0.2,78.5,78.472,3.1610342]
[1771880714166,0.2,78.5,78.481,3.1610342]
[1771880714981,0.85007517,78.535,78.492,3.1610342]
[1771880715162,12.25744099,78.53,78.492,3.1610342]
[1771880715880,0.8494307,78.529,78.492,3.1610342]
[1771880716382,12.25744099,78.51,78.487,12.74083473]
[1771880716591,13.10624731,78.51,78.487,12.74083473]
[1771880716893,13.10624731,78.51,78.486,3.1610342]
[1771880717067,13.10624731,78.51,78.486,15.90215516]
[1771880717267,12.25744099,78.5,78.477,3.1610342]
[1771880717467,0.84819456,78.499,78.473,12.74312012]
[1771880718384,0.84819456,78.499,78.443,5.36086188]
[1771880718385,12.25744099,78.48,78.463,3.23309183]
[1771880718687,12.25744099,78.48,78.459,12.74550294]
[1771880718894,12.25744099,78.48,78.459,15.97859477]
[1771880719189,12.25744099,78.48,78.46,3.23309183]
[1771880720293,12.25744099,78.48,78.461,12.7451855]
[1771880720681,12.25744099,78.48,78.462,3.3635138]
[1771880721197,12.25744099,78.48,78.463,16.10837443]
[1771880723275,12.25744099,78.49,78.464,3.3635138]
[1771880723679,12.74063881,78.489,78.464,3.3635138]
[1771880724881,3.2719824,78.479,78.44,12.25744099]
[1771880726892,16.01435085,78.479,78.442,44.61895412]
[1771880727195,3.2719824,78.478,78.443,3.3635138]
[1771880729189,3.2719824,78.476,78.445,3.3635138]
[1771880729393,12.25744099,78.46,78.444,12.74794758]
[1771880729574,12.25744099,78.46,78.431,31.874957]
[1771880729575,3.2719824,78.466,78.441,3.3635138]
[1771880731105,3.2719824,78.449,78.423,3.3635138]
[1771880731519,12.25744099,78.44,78.424,12.75119861]
[1771880731812,12.25744099,78.44,78.416,3.3635138]
[1771880732500,12.25744099,78.44,78.42,12.95176633]
[1771880733010,12.25744099,78.44,78.421,3.3635138]
[1771880733187,12.25744099,78.44,78.422,12.7515238]
[1771880733893,12.25744099,78.44,78.42,0.2]
[1771880734095,3.2719824,78.439,78.42,0.2]
[1771880734407,12.25744099,78.43,78.42,0.2]
[1771880734612,3.2719824,78.429,78.407,3.3635138]
[1771880735188,12.75054827,78.428,78.407,3.3635138]
[1771880735405,3.2719824,78.427,78.404,12.75438921]
[1771880735615,3.2719824,78.428,78.404,16.11790301]
[1771880736111,3.2719824,78.428,78.405,3.3635138]
[1771880736297,12.25744099,78.43,78.405,3.3635138]
[1771880736503,12.75038569,78.429,78.405,3.3635138]
[1771880737301,12.25744099,78.43,78.407,3.3635138]
[1771880737499,63.69305059,78.502,78.408,3.64783694]
[1771880737814,3.2719824,78.499,78.47,12.25744099]
[1771880738210,12.25744099,78.49,78.462,3.3635138]
[1771880738419,3.2719824,78.49,78.462,3.3635138]
[1771880739417,3.2719824,78.49,78.47,12.25744099]
[1771880739715,3.2719824,78.49,78.438,50.99538185]
[1771880739716,3.2719824,78.479,78.43,3.3635138]
[1771880740015,3.2719824,78.469,78.431,3.3635138]
[1771880740208,3.2719824,78.449,78.424,3.3635138]
[1771880740615,3.2719824,78.449,78.415,3.3635138]
[1771880740924,12.25744099,78.44,78.415,3.3635138]
[1771880741120,3.2719824,78.449,78.415,3.3635138]
[1771880741498,3.2719824,78.449,78.407,44.63887152]
[1771880741499,3.2719824,78.439,78.416,12.75249948]
[1771880742127,3.2719824,78.439,78.416,12.37066187]
[1771880742425,12.25744099,78.45,78.417,3.3635138]
[1771880743016,15.52942339,78.45,78.417,3.3635138]
[1771880743911,16.01911748,78.449,78.417,3.3635138]
[1771880744114,3.2719824,78.448,78.417,3.3635138]
[1771880745010,12.25744099,78.44,78.417,3.3635138]
[1771880745208,12.28092856,78.44,78.417,3.3635138]
[1771880745412,12.28092856,78.44,78.41,12.28092856]
[1771880745413,3.2719824,78.438,78.411,12.75316242]
[1771880745717,12.28092856,78.43,78.411,12.75316242]
[1771880746224,3.2719824,78.438,78.411,12.75316242]
[1771880747419,3.2719824,78.438,78.412,3.3635138]
[1771880748019,3.16759932,78.436,78.404,3.10745063]
[1771880748211,12.28092856,78.43,78.404,3.10745063]
[1771880749624,15.44852788,78.43,78.405,12.75428862]
[1771880749810,3.16759932,78.428,78.404,15.86185692]
[1771880750012,3.16759932,78.428,78.405,3.10745063]
[1771880751122,3.16759932,78.428,78.406,12.75412595]
[1771880751317,12.28092856,78.45,78.411,3.10745063]
[1771880751518,12.28092856,78.45,78.421,3.10745063]
[1771880751913,12.74595434,78.457,78.421,3.10745063]
[1771880752117,6.66436861,78.465,78.431,3.10745063]
[1771880752314,6.66436861,78.465,78.441,3.10745063]
[1771880752625,12.74226226,78.479,78.441,3.10745063]
[1771880753339,12.74226226,78.479,78.44,12.28092856]
[1771880753340,1.49560946,78.478,78.443,3.10745063]
[1771880756430,12.74226226,78.479,78.451,3.10745063]
[1771880756822,12.74106138,78.487,78.461,3.10745063]
[1771880757017,1.5093899,78.503,78.461,3.10745063]
[1771880757546,12.28092856,78.5,78.471,3.10745063]
[1771880758647,12.28092856,78.5,78.473,3.10745063]
[1771880759537,1.5093899,78.503,78.473,3.10745063]
[1771880760116,1.51934898,78.499,78.473,3.10745063]
[1771880760441,1.51934898,78.499,78.47,12.28092856]
[1771880760442,1.51934898,78.489,78.457,15.85328592]
[1771880760744,1.52260334,78.487,78.458,3.10745063]
[1771880761346,12.28092856,78.48,78.458,3.10745063]
[1771880762742,12.28092856,78.47,78.449,3.10745063]
[1771880763733,12.28092856,78.47,78.442,3.10745063]
[1771880765435,12.28092856,78.47,78.444,3.10745063]
[1771880766443,14.27552428,78.472,78.444,3.10745063]
[1771880766444,12.7428358,78.476,78.444,3.10745063]
[1771880766641,1.54136382,78.508,78.471,3.10745063]
[1771880766827,12.28092856,78.5,78.471,3.10745063]
[1771880767021,12.28092856,78.5,78.47,12.28092856]
[1771880767022,1.54136382,78.548,78.481,3.10745063]
[1771880768044,1.54437186,78.514,78.471,3.10745063]
[1771880768232,1.54437186,78.514,78.481,3.10745063]
[1771880768431,12.28092856,78.51,78.481,3.10745063]
[1771880768629,1.54732064,78.489,78.438,3.10745063]
[1771880768944,12.28092856,78.48,78.441,3.10745063]
[1771880769141,12.28092856,78.52,78.471,3.10745063]
[1771880769337,12.28092856,78.49,78.463,3.10745063]
[1771880769643,12.28092856,78.47,78.431,3.10745063]
[1771880769845,12.28092856,78.46,78.431,3.10745063]
[1771880770034,1.54993628,78.502,78.451,3.10745063]
[1771880770353,12.28092856,78.47,78.431,3.10745063]
[1771880770647,1.54993628,78.48,78.431,3.10745063]
[1771880770648,12.28092856,78.45,78.431,3.10745063]
[1771880771022,261.1201693,78.508,78.435,3.10745063]
[1771880771023,1.55254731,78.49,78.435,3.10745063]
[1771880771243,12.28092856,78.48,78.441,3.10745063]
[1771880771424,12.74166793,78.483,78.443,3.10745063]
[1771880771630,12.74166793,78.483,78.433,3.10745063]
[1771880771631,12.28092856,78.46,78.433,3.10745063]
[1771880772038,1.55511252,78.486,78.441,3.10745063]
[1771880772230,12.28092856,78.49,78.451,3.10745063]
[1771880772426,12.28092856,78.48,78.451,3.10745063]
[1771880772751,12.28092856,78.46,78.431,3.10745063]
[1771880773247,1.55763841,78.499,78.451,3.10745063]
[1771880773453,12.74063881,78.489,78.461,3.10745063]
[1771880773639,12.74063881,78.489,78.438,3.45494825]
[1771880773640,12.28092856,78.48,78.438,3.45494825]
[1771880773847,12.28092856,78.48,78.451,3.45494825]
[1771880774043,50.92290307,78.551,78.453,3.45494825]
[1771880774244,12.28092856,78.49,78.461,3.45494825]
[1771880774752,12.28092856,78.48,78.441,3.45494825]
[1771880775251,3.69383402,78.497,78.441,3.45494825]
[1771880775550,12.28092856,78.47,78.441,3.45494825]
[1771880776532,12.28092856,78.47,78.443,3.45494825]
[1771880777551,12.74280571,78.476,78.443,3.45494825]
[1771880778661,12.74280571,78.476,78.445,3.45494825]
[1771880781055,12.74280571,78.476,78.447,3.45494825]
[1771880781951,12.74226226,78.479,78.447,3.45494825]
[1771880782943,12.28092856,78.47,78.447,3.45494825]
[1771880783550,12.28092856,78.47,78.448,12.74729757]
[1771880783751,12.28092856,78.47,78.449,3.45494825]
[1771880787460,25.02302845,78.48,78.451,3.45494825]
[1771880787662,12.28092856,78.47,78.451,3.45494825]
[1771880789549,12.28092856,78.47,78.452,3.45494825]
[1771880794758,12.28092856,78.47,78.454,3.45494825]
[1771880796383,12.28092856,78.49,78.456,3.45494825]
[1771880796872,12.74063881,78.489,78.457,12.74583529]
[1771880797173,12.73960659,78.496,78.461,3.45494825]
[1771880800179,12.28092856,78.49,78.463,3.45494825]
[1771880804485,0.09369171,78.495,78.465,3.45494825]
[1771880804783,12.28092856,78.49,78.465,3.45494825]
[1771880805384,12.26690741,78.49,78.465,3.45494825]
[1771880805691,3.80051972,78.506,78.465,3.45494825]
[1771880805984,12.73739316,78.509,78.471,3.45494825]
[1771880806868,12.26690741,78.5,78.473,3.45494825]
[1771880809194,12.26690741,78.49,78.468,12.74404062]
[1771880809380,12.26690741,78.48,78.467,16.19911477]
[1771880809689,12.26690741,78.49,78.468,3.45494825]
[1771880811369,5.49540365,78.49,78.468,3.45494825]
[1771880811577,5.49540365,78.49,78.47,3.45494825]
[1771880811771,0.12343514,78.511,78.47,5.49540365]
[1771880811973,18.23263457,78.51,78.471,3.45494825]
[1771880812200,5.49540365,78.5,78.471,3.45494825]
[1771880813494,12.73723092,78.51,78.443,5.36086188]
[1771880813495,5.49540365,78.51,78.481,3.45494825]
[1771880813893,63.65933642,78.544,78.472,44.6018962]
[1771880813894,5.49540365,78.52,78.491,3.45494825]
[1771880814073,5.49540365,78.54,78.501,3.45494825]
[1771880814496,5.49540365,78.53,78.501,3.45494825]
[1771880815190,5.49540365,78.51,78.491,3.45494825]
[1771880815692,5.49540365,78.52,78.493,3.45494825]
[1771880817611,5.49540365,78.52,78.495,3.45494825]
[1771880818878,5.49540365,78.52,78.497,3.45494825]
[1771880819479,0.13876091,78.521,78.497,3.45494825]
[1771880819787,31.83131947,78.539,78.497,3.45494825]
[1771880819788,5.49540365,78.52,78.497,3.45494825]
[1771880821597,5.49540365,78.52,78.499,3.45494825]
[1771880822289,0.14086417,78.528,78.499,3.45494825]
[1771880822493,12.73423137,78.529,78.499,3.45494825]
[1771880822900,5.49540365,78.53,78.501,3.45494825]
[1771880823399,18.22940015,78.53,78.501,3.45494825]
[1771880823598,12.7339965,78.53,78.503,3.45494825]
[1771880823808,12.73123098,78.547,78.511,3.45494825]
[1771880824096,12.73090682,78.549,78.521,3.45494825]
[1771880824998,0.2,78.55,78.521,3.45494825]
[1771880825383,5.69540365,78.55,78.521,3.45494825]
[1771880825696,12.73090682,78.549,78.523,3.45494825]
[1771880825900,5.49540365,78.54,78.523,3.45494825]
[1771880826400,12.73090682,78.549,78.523,3.45494825]
[1771880827395,5.69540365,78.55,78.523,3.45494825]
[1771880827602,5.69540365,78.55,78.524,12.73496001]
[1771880827801,5.69540365,78.55,78.525,3.45494825]
[1771880828799,12.73090682,78.549,78.525,3.45494825]
[1771880829387,0.15684161,78.539,78.512,3.45494825]
[1771880829586,5.49540365,78.53,78.512,3.45494825]
[1771880829792,5.49540365,78.53,78.513,12.73674423]
[1771880831308,5.49540365,78.54,78.514,3.45494825]
[1771880832490,0.2,78.55,78.516,3.45494825]
[1771880832704,5.69540365,78.55,78.521,3.45494825]
[1771880832886,18.42625535,78.55,78.521,3.45494825]
[1771880833903,5.49540365,78.54,78.521,3.45494825]
[1771880834492,5.49540365,78.54,78.522,12.73528437]
[1771880834704,5.49540365,78.54,78.523,3.45494825]
[1771880835009,13.08132288,78.55,78.523,3.45494825]
[1771880835188,18.57672653,78.55,78.523,3.45494825]
[1771880835388,5.49540365,78.53,78.516,3.45494825]
[1771880835585,5.49540365,78.54,78.516,3.45494825]
[1771880835806,5.49540365,78.53,78.516,3.45494825]
[1771880835989,5.49540365,78.53,78.516,16.19113808]
[1771880836191,5.49540365,78.54,78.516,16.19113808]
[1771880836589,5.49540365,78.53,78.516,16.19113808]
[1771880837191,5.49540365,78.53,78.516,3.45494825]
[1771880839001,12.73252778,78.539,78.516,3.45494825]
[1771880839900,0.1399615,78.538,78.516,3.45494825]
[1771880842714,5.49540365,78.54,78.516,3.45494825]
[1771880843227,5.49540365,78.54,78.518,3.51132864]
[1771880844727,12.73252778,78.539,78.518,3.51132864]
[1771880845422,5.49540365,78.54,78.519,3.51132864]
[1771880847518,12.73589798,78.587,78.503,31.8458203]
[1771880847519,12.14890292,78.57,78.531,3.51132864]
[1771880847713,12.14890292,78.57,78.541,3.51132864]
[1771880848115,24.87646555,78.57,78.541,3.51132864]
[1771880848503,18.22296628,78.57,78.541,3.51132864]
[1771880849109,18.22296628,78.57,78.543,3.51132864]
[1771880851122,5.92312256,78.58,78.545,3.51132864]
[1771880851317,12.72604639,78.579,78.545,3.51132864]
[1771880851724,5.49540365,78.57,78.545,3.51132864]
[1771880852921,0.32211843,78.559,78.532,3.51132864]
[1771880853225,12.72929713,78.559,78.532,3.51132864]
[1771880853620,3.79383402,78.58,78.541,3.51132864]
[1771880853621,37.41032285,78.58,78.541,3.51132864]
[1771880853822,0.32104545,78.579,78.541,3.51132864]
[1771880854028,5.49540365,78.57,78.541,3.51132864]
[1771880855422,12.72701818,78.573,78.542,12.73204145]
[1771880855624,12.72701818,78.573,78.543,3.51132864]
[1771880856221,12.72625441,78.578,78.543,3.51132864]
[1771880857011,5.49540365,78.57,78.543,3.51132864]
[1771880857415,0.3178958,78.577,78.543,3.51132864]
[1771880857608,12.72625441,78.578,78.551,3.51132864]
[1771880857916,0.2,78.62,78.544,44.56101038]
[1771880857917,12.72298136,78.598,78.561,3.51132864]
[1771880858608,0.2,78.6,78.571,3.51132864]
[1771880858811,0.415945,78.589,78.551,3.51132864]
[1771880859110,5.49540365,78.58,78.551,3.51132864]
[1771880859315,0.415945,78.589,78.551,3.51132864]
[1771880861927,12.72458899,78.588,78.553,3.51132864]
[1771880862232,13.13782652,78.588,78.553,3.51132864]
[1771880863030,13.13782652,78.588,78.554,12.73009649]
[1771880863237,13.13782652,78.588,78.555,3.51132864]
[1771880863749,12.72458899,78.588,78.555,3.51132864]
[1771880863911,0.41140625,78.579,78.555,3.51132864]
[1771880864110,0.41140625,78.585,78.555,3.51132864]
[1771880865739,12.72523668,78.584,78.557,3.51132864]
[1771880866531,0.40881457,78.598,78.561,3.51132864]
[1771880866834,12.72313192,78.597,78.571,3.51132864]
[1771880867140,0.40881457,78.596,78.571,3.51132864]
[1771880867348,0.2,78.6,78.571,3.51132864]
[1771880867548,0.2,78.6,78.57,5.48052988]
[1771880867549,0.2,78.6,78.581,3.51132864]
[1771880867922,0.2,78.6,78.583,3.30494825]
[1771880869142,0.2,78.6,78.56,5.48052988]
[1771880869143,12.72280817,78.599,78.579,3.30494825]
[1771880871828,0.40386411,78.598,78.571,16.0321806]
[1771880872031,0.40386411,78.598,78.572,3.30494825]
[1771880872229,12.72313192,78.597,78.574,3.30494825]
[1771880872753,13.12620294,78.597,78.574,3.30494825]
[1771880875032,0.40148714,78.596,78.574,3.30494825]
[1771880876235,5.68052988,78.6,78.581,3.30494825]
[1771880876236,0.2,78.6,78.581,3.30494825]
[1771880876644,0.39999098,78.599,78.573,3.30494825]
[1771880876843,0.39999098,78.598,78.574,12.72685621]
[1771880877041,0.39999098,78.598,78.574,16.03180446]
[1771880877240,0.39999098,78.598,78.575,3.30494825]
[1771880880360,0.39780375,78.589,78.554,3.30494825]
[1771880880552,44.53096173,78.597,78.521,3.30494825]
[1771880880553,5.48052988,78.57,78.521,3.30494825]
[1771880880758,5.48052988,78.56,78.531,3.30494825]
[1771880881068,0.39710098,78.559,78.522,3.30494825]
[1771880882083,5.48052988,78.56,78.522,3.30494825]
[1771880882084,5.48052988,78.54,78.522,3.30494825]
[1771880882380,0.39635464,78.548,78.512,47.88412086]
[1771880882557,0.39565792,78.559,78.52,5.48052988]
[1771880882757,5.48052988,78.55,78.52,5.48052988]
[1771880884077,5.48052988,78.55,78.521,3.30494825]
[1771880884768,5.48052988,78.56,78.531,3.30494825]
[1771880884966,12.72815212,78.566,78.531,3.30494825]
[1771880885471,18.20811722,78.57,78.541,3.30494825]
[1771880887466,0.39287277,78.559,78.533,3.30494825]
[1771880888967,5.48052988,78.55,78.533,3.30494825]
[1771880889167,12.7294483,78.558,78.533,3.30494825]
[1771880889970,12.7294483,78.558,78.532,12.73354616]
[1771880889971,0.38860287,78.539,78.486,3.30494825]
[1771880890269,5.48052988,78.53,78.501,3.30494825]
[1771880890968,5.48052988,78.53,78.503,3.30494825]
[1771880893881,5.48052988,78.54,78.51,5.48052988]
[1771880894066,0.37742483,78.547,78.511,3.30494825]
[1771880894264,0.37742483,78.539,78.511,3.30494825]
[1771880894473,5.48052988,78.53,78.511,3.30494825]
[1771880895584,5.48052988,78.53,78.512,3.30494825]
[1771880896181,0.37742483,78.539,78.512,3.30494825]
[1771880896182,5.48052988,78.54,78.512,3.30494825]
[1771880898785,5.48052988,78.56,78.531,3.30494825]
[1771880899886,12.72928626,78.559,78.532,12.73366271]
[1771880900207,13.0882172,78.559,78.533,3.30494825]
[1771880900589,12.72928626,78.559,78.533,3.30494825]
[1771880903096,0.34889936,78.558,78.529,3.30494825]
[1771880908989,12.72961034,78.557,78.531,3.30494825]
[1771880909600,31.8163403,78.576,78.531,3.30494825]
[1771880909776,5.48052988,78.57,78.541,3.30494825]
[1771880910798,12.72766612,78.569,78.542,12.73204145]
[1771880910978,12.72766612,78.569,78.543,3.30494825]
[1771880913600,12.72766612,78.569,78.48,5.48052988]
[1771880913601,0.32364193,78.549,78.525,3.30494825]
[1771880916291,0.31939732,78.539,78.498,3.30494825]
[1771880916491,12.7310689,78.548,78.49,5.48052988]
[1771880916492,0.31732233,78.519,78.492,3.30494825]
[1771880916695,5.48052988,78.53,78.492,3.30494825]
[1771880920404,12.73414916,78.529,78.494,3.30494825]
[1771880921405,12.73414916,78.529,78.501,3.30494825]
[1771880921791,12.73252778,78.539,78.501,3.30494825]
[1771880923109,12.73252778,78.539,78.503,3.30494825]